[Event "FIDE WCCC Girls-10 2024"]
[Site "Montesilvano"]
[Date "2024.11.20"]
[Round "6.1"]
[White "Cetin, Beren"]
[Black "Berikkyzy Alanna"]
[Result "0-1"]
[Annotator "RC"]
[ECO "B24"]
[WhiteElo "1658"]
[BlackElo "2043"]
[PlyCount "68"]
[EventDate "2024.11.18"]
[EventType "swiss"]
[EventCountry "ITA"]
[SourceTitle "playchess.com"]
[Source "ChessBase"]
[SourceQuality "1"]
[TimeControl "5400+30"]

1. e4 {[%emt 0:00:02]} c5 {[%emt 0:00:20]} 2. Nc3 {[%emt 0:00:39]} e6 {[%emt 0:00:33]} 3. Nge2 {[%emt 0:00:36]} Nc6 {[%emt 0:00:58]} 4. g3 {[%emt 0:01:37]} d5 {[%emt 0:00:38]} 5. exd5 {[%emt 0:01:32]} exd5 {[%emt 0:00:22]} 6. d4 {[%emt 0:01:57]} Nf6 {[%emt 0:01:06]} 7. Bg2 {[%emt 0:01:49]} cxd4 {[%emt 0:02:13]} 8. Nxd4 {[%emt 0:01:40]} Bb4 {[%emt 0:05:28]} 9. O-O {[%emt 0:03:19]} O-O {[%emt 0:00:58]} 10. Bg5 {[%emt 0:03:33]} Be7 {[%emt 0:04:52]} 11. Re1 {[%emt 0:04:25]} h6 {[%emt 0:01:32]} 12. Bf4 {[%emt 0:01:58]} Bc5 {[%emt 0:04:20]} 13. Be3 {[%emt 0:02:33]} Bg4 {[%emt 0:10:50]} 14. Qd2 {[%emt 0:09:00]} Bb6 {[%emt 0:04:06]} 15. Na4 {[%emt 0:08:44]} Bc7 {[%emt 0:06:22]} 16. Nc5 {[%emt 0:03:59]} Ne5 {[%emt 0:03:51]} 17. h3 {[%emt 0:05:04]} Nc4 {[%emt 0:05:44]} 18. Qc3 {[%emt 0:04:25]} Bd7 {[%emt 0:06:10]} 19. b3 {[%emt 0:04:57]} Ba5 {[%emt 0:06:07]} 20. b4 {[%emt 0:00:12]} Bb6 {[%emt 0:01:03]} 21. g4 {[%emt 0:03:43]} Nd6 {[%emt 0:08:29]} 22. Bf4 {[%emt 0:04:28]} Bxc5 {[%emt 0:01:01]} 23. Qxc5 {[%emt 0:05:07]} Nde4 {[%emt 0:02:44]} 24. Bxe4 {[%emt 0:04:06]} dxe4 {[%emt 0:00:18]} 25. Rad1 {[%emt 0:06:33]} Rc8 {[%emt 0:04:11]} 26. Qd6 {[%emt 0:00:49]} Re8 {[%emt 0:03:18]} 27. Be5 {[%emt 0:05:12]} Nxg4 {[%emt 0:03:33]} 28. Bg3 {[%emt 0:10:19]} Nf6 {[%emt 0:01:00]} 29. Kh2 {[%emt 0:00:43]} Qe7 {[%emt 0:00:37]} 30. Nb3 {[%emt 0:01:02]} Qxd6 {[%emt 0:00:16]} 31. Rxd6 {[%emt 0:00:05]} Rxc2 {[%emt 0:00:23]} 32. Bh4 {[%emt 0:00:49]} Bc6 {[%emt 0:01:44]} 33. Nd4 {[%emt 0:01:00]} Rd2 {[%emt 0:00:40]} 34. Rg1 {[%emt 0:00:17]} e3 {[%emt 0:03:31]} 0-1

[Event "FIDE WCCC Girls-10 2024"]
[Site "Montesilvano"]
[Date "2024.11.20"]
[Round "6.2"]
[White "Yang, Aimee"]
[Black "Sholpanbek, Zhansaya"]
[Result "1/2-1/2"]
[Annotator "NA RC"]
[ECO "E68"]
[WhiteElo "1864"]
[BlackElo "1657"]
[PlyCount "186"]
[EventDate "2024.11.18"]
[EventType "swiss"]
[EventCountry "ITA"]
[SourceTitle "playchess.com"]
[Source "ChessBase"]
[SourceQuality "1"]
[TimeControl "5400+30"]

1. d4 {[%emt 0:00:10]} Nf6 {[%emt 0:00:39]} 2. c4 {[%emt 0:00:08]} g6 {[%emt 0:00:21]} 3. g3 {[%emt 0:00:06]} Bg7 {[%emt 0:00:08]} 4. Bg2 {[%emt 0:00:09]} O-O {[%emt 0:00:18]} 5. Nc3 {[%emt 0:00:07]} d6 {[%emt 0:00:19]} 6. Nf3 {[%emt 0:00:09]} Nbd7 {[%emt 0:00:44]} 7. O-O {[%emt 0:00:17]} e5 {[%emt 0:00:15]} 8. e4 {[%emt 0:00:28]} c6 {[%emt 0:01:00]} 9. Re1 {[%emt 0:00:41]} exd4 {[%emt 0:01:08]} 10. Nxd4 {[%emt 0:00:12]} Ng4 {[%emt 0:00:19]} 11. Nxc6 {[%emt 0:07:01]} bxc6 {[%emt 0:02:01]} 12. Qxg4 {[%emt 0:00:17]} Ne5 {[%emt 0:00:22]} 13. Qd1 {[%emt 0:02:17]} Nxc4 {[%emt 0:01:27]} 14. Qc2 {[%emt 0:05:31]} Be6 {[%emt 0:04:16]} 15. Bf4 {[%emt 0:08:28]} Rb8 {[%emt 0:01:17]} 16. b3 {[%emt 0:01:23]} Qa5 {[%emt 0:05:09]} 17. Rac1 {[%emt 0:01:29]} g5 {[%emt 0:10:24]} 18. Be3 {[%emt 0:05:03]} Nxe3 {[%emt 0:00:10]} 19. Rxe3 {[%emt 0:00:12]} d5 {[%emt 0:03:10]} 20. Rd3 {[%emt 0:01:29]} Rbc8 {[%emt 0:08:06]} 21. Na4 {[%emt 0:02:39]} dxe4 {[%emt 0:18:12]} 22. Bxe4 {[%emt 0:00:47]} Qb4 {[%emt 0:04:03]} 23. Rdd1 {[%emt 0:02:05]} f5 {[%emt 0:07:28]} 24. Bxc6 {[%emt 0:01:21]} Rc7 {[%emt 0:00:25]} 25. Qe2 {[%emt 0:01:13]} Bf7 {[%emt 0:01:41]} 26. Bd5 {[%emt 0:03:44]} Rd7 {[%emt 0:06:31]} 27. Bxf7+ {[%emt 0:04:38]} Rdxf7 {[%emt 0:00:04]} 28. Qe6 {[%emt 0:01:43]} Kh8 {[%emt 0:03:20]} 29. Rc8 {[%emt 0:01:44]} Rxc8 {[%emt 0:02:45]} 30. Qxc8+ {[%emt 0:01:31]} Rf8 {[%emt 0:00:02]} 31. Qc5 {[%emt 0:00:17]} Qb7 {[%emt 0:00:58]} 32. Qd5 {[%emt 0:00:49]} Qe7 {[%emt 0:01:12]} 33. Nc5 {[%emt 0:00:58]} Bf6 {[%emt 0:08:22]} 34. Nd7 {[%emt 0:01:57]} Rf7 {[%emt 0:00:18]} 35. Qd6 {[%emt 0:02:55]} Kg7 {[%emt 0:01:06]} 36. Qxe7 {[%emt 0:02:00]} Rxe7 {[%emt 0:00:09]} 37. Kf1 {[%emt 0:00:09]} Bc3 {[%emt 0:01:01]} 38. Nc5 {[%emt 0:00:30]} Bb4 {[%emt 0:02:18]} 39. Rd5 {[%emt 0:01:43]} Kf6 {[%emt 0:01:16]} 40. Nd3 {[%emt 0:00:30]} Bc3 {[%emt 0:00:48]} 41. b4 {[%emt 0:01:52]} Ba1 {[%emt 0:01:22]} 42. a4 {[%emt 0:01:38]} Bc3 {[%emt 0:00:55]} 43. Rc5 {[%emt 0:03:38]} Bd4 {[%emt 0:00:17]} 44. Rc8 {[%emt 0:00:36]} Ke6 {[%emt 0:03:48]} 45. Rg8 {[%emt 0:01:22]} Bf6 {[%emt 0:01:36]} 46. Nc5+ {[%emt 0:02:13]} Kf7 {[%emt 0:00:51]} 47. Rb8 {[%emt 0:00:41]} Bd4 {[%emt 0:00:46]} 48. a5 {[%emt 0:05:54]} Bc3 {[%emt 0:00:35]} 49. Nd3 {[%emt 0:00:33]} Kf6 {[%emt 0:00:27]} 50. Kg2 {[%emt 0:04:08]} Kf7 {[%emt 0:00:31]} 51. Nc5 {[%emt 0:02:25]} Kf6 {[%emt 0:00:28]} 52. a6 {[%emt 0:03:18]} Bd4 {[%emt 0:00:31]} 53. Kf1 {[%emt 0:01:36]} Kf7 {[%emt 0:00:46]} 54. Na4 {[%emt 0:00:37]} Kg6 {[%emt 0:00:16]} 55. b5 {[%emt 0:00:08]} h6 {[%emt 0:00:40]} 56. b6 {[%emt 0:01:00]} axb6 {[%emt 0:00:32]} 57. Nxb6 {[%emt 0:00:40]} Ra7 {[%emt 0:00:13]} 58. Nd5 {[%emt 0:02:13]} Rxa6 {[%emt 0:00:11]} 59. Rb4 {[%emt 0:00:11]} Bc5 {[%emt 0:00:53]} 60. Rc4 {[%emt 0:00:12]} Ba7 {[%emt 0:00:39]} 61. Rc2 {[%emt 0:01:01]} Bd4 {[%emt 0:00:23]} 62. Ke2 {[%emt 0:00:23]} Rd6 {[%emt 0:00:17]} 63. Nb4 {[%emt 0:00:30]} Rb6 {[%emt 0:00:18]} 64. Nc6 {[%emt 0:00:46]} Bf6 {[%emt 0:00:08]} 65. Kd3 {[%emt 0:01:39]} Rb1 {[%emt 0:00:18]} 66. f3 {[%emt 0:01:10]} Rf1 {[%emt 0:00:43]} 67. Ke3 {[%emt 0:00:15]} Re1+ {[%emt 0:00:13]} 68. Kf2 {[%emt 0:00:10]} Rh1 {[%emt 0:00:10]} 69. Kg2 {[%emt 0:00:09]} Rb1 {[%emt 0:00:10]} 70. Kf2 {[%emt 0:00:15]} Rh1 {[%emt 0:00:10]} 71. Kg2 {[%emt 0:00:18]} Rb1 {[%emt 0:00:05]} 72. Na5 {[%emt 0:00:11]} Rb2 {[%emt 0:00:06]} 73. Rxb2 {[%emt 0:00:07]} Bxb2 {[%emt 0:00:05]} 74. Kf2 {[%emt 0:00:09]} Bc3 {[%emt 0:00:11]} 75. Nc4 {[%emt 0:00:06]} Kf6 {[%emt 0:00:10]} 76. Ke3 {[%emt 0:00:10]} Ke6 {[%emt 0:00:05]} 77. Kd3 {[%emt 0:00:14]} Bg7 {[%emt 0:00:24]} 78. Ne3 {[%emt 0:00:35]} Ba1 {[%emt 0:00:18]} 79. Ng2 {[%emt 0:00:48]} Ke5 {[%emt 0:00:23]} 80. Ne3 {[%emt 0:00:11]} Ke6 {[%emt 0:00:18]} 81. Kc4 {[%emt 0:00:23]} Be5 {[%emt 0:00:18]} 82. Kd3 {[%emt 0:00:12]} Ba1 {[%emt 0:00:07]} 83. Nc4 {[%emt 0:00:19]} Bg7 {[%emt 0:00:16]} 84. Ke3 {[%emt 0:00:14]} Ba1 {[%emt 0:00:10]} 85. Nd2 {[%emt 0:00:49]} Bh8 {[%emt 0:00:08]} 86. Nb3 {[%emt 0:00:17]} Bg7 {[%emt 0:00:09]} 87. Nd2 {[%emt 0:00:27]} Kd5 {[%emt 0:00:18]} 88. Kd3 {[%emt 0:00:08]} Bh8 {[%emt 0:00:14]} 89. Nf1 {[%emt 0:00:25]} Ba1 {[%emt 0:00:44]} 90. Ne3+ {[%emt 0:00:16]} Ke6 {[%emt 0:00:06]} 91. Nf1 {[%emt 0:00:16]} Bh8 {[%emt 0:00:28]} 92. Ke3 {[%emt 0:00:26]} Ba1 {[%emt 0:00:21]} 93. Nd2 {[%emt 0:00:33]} Ke5 {[%emt 0:08:57]} 1/2-1/2

[Event "FIDE WCCC Girls-10 2024"]
[Site "Montesilvano"]
[Date "2024.11.20"]
[Round "6.3"]
[White "Yunker, Alisa Genrietta"]
[Black "Wang, Yi Xuan"]
[Result "1-0"]
[Annotator "NA RC"]
[ECO "D32"]
[WhiteElo "1872"]
[BlackElo "1668"]
[PlyCount "125"]
[EventDate "2024.11.18"]
[EventType "swiss"]
[EventCountry "ITA"]
[SourceTitle "playchess.com"]
[Source "ChessBase"]
[SourceQuality "1"]
[TimeControl "5400+30"]

1. d4 {[%emt 0:00:01]} d5 {[%emt 0:00:12]} 2. c4 {[%emt 0:00:05]} c5 {[%emt 0:00:24]} 3. Nc3 {[%emt 0:10:04]} e6 {[%emt 0:10:36]} 4. cxd5 {[%emt 0:01:12]} exd5 {[%emt 0:00:45]} 5. Bf4 {[%emt 0:03:53]} Nc6 {[%emt 0:01:01]} 6. Nf3 {[%emt 0:03:38]} Nf6 {[%emt 0:04:42]} 7. e3 {[%emt 0:01:55]} a6 {[%emt 0:02:10]} 8. dxc5 {[%emt 0:00:06]} Bxc5 {[%emt 0:00:48]} 9. Be2 {[%emt 0:03:11]} O-O {[%emt 0:01:13]} 10. O-O {[%emt 0:00:07]} d4 {[%emt 0:03:31]} 11. exd4 {[%emt 0:01:01]} Nxd4 {[%emt 0:00:28]} 12. Nxd4 {[%emt 0:07:09]} Qxd4 {[%emt 0:03:51]} 13. Qxd4 {[%emt 0:11:38]} Bxd4 {[%emt 0:00:04]} 14. Bf3 {[%emt 0:00:23]} Ra7 {[%emt 0:07:54]} 15. Rac1 {[%emt 0:02:18]} Be6 {[%emt 0:02:45]} 16. Rfd1 {[%emt 0:00:29]} Bxc3 {[%emt 0:05:22]} 17. Rxc3 {[%emt 0:00:34]} Bxa2 {[%emt 0:04:04]} 18. b3 {[%emt 0:05:35]} Re8 {[%emt 0:05:53]} 19. g3 {[%emt 0:01:40]} b5 {[%emt 0:05:49]} 20. Ra1 {[%emt 0:00:08]} b4 {[%emt 0:00:07]} 21. Rd3 {[%emt 0:00:01]} Bxb3 {[%emt 0:00:37]} 22. Rxb3 {[%emt 0:00:01]} a5 {[%emt 0:00:19]} 23. Rxb4 {[%emt 0:00:03]} axb4 {[%emt 0:03:26]} 24. Rxa7 {[%emt 0:00:01]} b3 {[%emt 0:01:04]} 25. Rb7 {[%emt 0:00:06]} h6 {[%emt 0:01:24]} 26. Rxb3 {[%emt 0:00:05]} g5 {[%emt 0:00:05]} 27. Be3 {[%emt 0:00:02]} g4 {[%emt 0:00:26]} 28. Bc6 {[%emt 0:00:06]} Rc8 {[%emt 0:00:31]} 29. Rb6 {[%emt 0:00:06]} Rd8 {[%emt 0:01:04]} 30. Bf4 {[%emt 0:00:09]} Rd1+ {[%emt 0:00:22]} 31. Kg2 {[%emt 0:00:02]} h5 {[%emt 0:00:37]} 32. Ba4 {[%emt 0:00:09]} Rd4 {[%emt 0:00:16]} 33. Rxf6 {[%emt 0:00:04]} Rxa4 {[%emt 0:00:09]} 34. Rf5 {[%emt 0:00:01]} h4 {[%emt 0:00:31]} 35. gxh4 {[%emt 0:00:07]} Kg7 {[%emt 0:00:07]} 36. Kg3 {[%emt 0:00:05]} Kg6 {[%emt 0:00:17]} 37. Kxg4 {[%emt 0:00:07]} Ra2 {[%emt 0:00:18]} 38. h5+ {[%emt 0:00:03]} Kg7 {[%emt 0:00:24]} 39. Be5+ {[%emt 0:00:05]} Kh6 {[%emt 0:00:44]} 40. Rf6+ {[%emt 0:00:04]} Kh7 {[%emt 0:00:15]} 41. Rxf7+ {[%emt 0:00:03]} Kg8 {[%emt 0:00:08]} 42. Rf4 {[%emt 0:00:06]} Ra5 {[%emt 0:00:10]} 43. Rf5 {[%emt 0:00:07]} Ra4+ {[%emt 0:00:05]} 44. Kg5 {[%emt 0:00:04]} Ra6 {[%emt 0:00:19]} 45. Rf6 {[%emt 0:00:04]} Ra5 {[%emt 0:00:07]} 46. f4 {[%emt 0:00:03]} Ra2 {[%emt 0:00:07]} 47. Rg6+ {[%emt 0:00:05]} Kf7 {[%emt 0:00:11]} 48. Kf5 {[%emt 0:00:06]} Rxh2 {[%emt 0:00:13]} 49. Rg7+ {[%emt 0:00:03]} Kf8 {[%emt 0:00:10]} 50. Rg5 {[%emt 0:00:05]} Kf7 {[%emt 0:00:18]} 51. Kg4 {[%emt 0:00:07]} Rg2+ {[%emt 0:00:30]} 52. Kf3 {[%emt 0:00:06]} Ra2 {[%emt 0:00:31]} 53. h6 {[%emt 0:00:06]} Ra3+ {[%emt 0:00:06]} 54. Kg4 {[%emt 0:00:04]} Ra2 {[%emt 0:00:27]} 55. h7 {[%emt 0:00:09]} Rg2+ {[%emt 0:00:21]} 56. Kf5 {[%emt 0:00:14]} Rh2 {[%emt 0:00:11]} 57. h8=Q {[%emt 0:00:05]} Rxh8 {[%emt 0:00:13]} 58. Bxh8 {[%emt 0:00:01]} Ke7 {[%emt 0:00:11]} 59. Be5 {[%emt 0:00:10]} Kf7 {[%emt 0:00:07]} 60. Rg7+ {[%emt 0:00:05]} Ke8 {[%emt 0:01:01]} 61. Ke6 {[%emt 0:00:05]} Kf8 {[%emt 0:00:18]} 62. Rg1 {[%emt 0:00:07]} Ke8 {[%emt 0:00:14]} 63. Rg8# {[%emt 0:00:36]} 1-0

[Event "FIDE WCCC Girls-10 2024"]
[Site "Montesilvano"]
[Date "2024.11.20"]
[Round "6.4"]
[White "Jaksa, Ema"]
[Black "Tselmuun, Ider"]
[Result "0-1"]
[Annotator "NA RC"]
[ECO "C01"]
[WhiteElo "1635"]
[BlackElo "1846"]
[PlyCount "70"]
[EventDate "2024.11.18"]
[EventType "swiss"]
[EventCountry "ITA"]
[SourceTitle "playchess.com"]
[Source "ChessBase"]
[SourceQuality "1"]
[TimeControl "5400+30"]

1. e4 {[%emt 0:00:10]} e6 {[%emt 0:00:10]} 2. e5 {[%emt 0:01:58]} d6 {[%emt 0:00:17]} 3. exd6 {[%emt 0:00:43]} Bxd6 {[%emt 0:00:35]} 4. d4 {[%emt 0:00:36]} Nf6 {[%emt 0:01:01]} 5. Nf3 {[%emt 0:01:00]} O-O {[%emt 0:00:12]} 6. Bd3 {[%emt 0:01:13]} c5 {[%emt 0:00:59]} 7. dxc5 {[%emt 0:00:52]} Bxc5 {[%emt 0:00:09]} 8. O-O {[%emt 0:00:55]} Qc7 {[%emt 0:01:27]} 9. Nc3 {[%emt 0:01:41]} a6 {[%emt 0:00:11]} 10. Bg5 {[%emt 0:04:01]} Nbd7 {[%emt 0:00:34]} 11. Qe2 {[%emt 0:03:10]} h6 {[%emt 0:20:32]} 12. Bh4 {[%emt 0:03:08]} b5 {[%emt 0:06:32]} 13. Bg3 {[%emt 0:03:45]} Qa7 {[%emt 0:01:15]} 14. Ne4 {[%emt 0:03:05]} Nxe4 {[%emt 0:01:27]} 15. Bxe4 {[%emt 0:00:32]} Bb7 {[%emt 0:00:09]} 16. Rad1 {[%emt 0:05:25]} Bxe4 {[%emt 0:00:48]} 17. Qxe4 {[%emt 0:01:42]} Nf6 {[%emt 0:00:09]} 18. Qe2 {[%emt 0:01:45]} Nd5 {[%emt 0:03:22]} 19. Ne5 {[%emt 0:01:49]} Rac8 {[%emt 0:01:14]} 20. Nd3 {[%emt 0:03:36]} Bd4 {[%emt 0:07:11]} 21. Be5 {[%emt 0:05:41]} Bxe5 {[%emt 0:00:42]} 22. Nxe5 {[%emt 0:00:38]} b4 {[%emt 0:11:04]} 23. Rd2 {[%emt 0:10:59]} Rc7 {[%emt 0:02:12]} 24. Rfd1 {[%emt 0:05:04]} a5 {[%emt 0:02:24]} 25. Nf3 {[%emt 0:08:29]} a4 {[%emt 0:04:08]} 26. Nd4 {[%emt 0:01:03]} Qb6 {[%emt 0:00:35]} 27. Qe5 {[%emt 0:03:48]} Rc5 {[%emt 0:10:19]} 28. Qe4 {[%emt 0:05:00]} a3 {[%emt 0:02:50]} 29. Nb3 {[%emt 0:13:27]} Rcc8 {[%emt 0:06:19]} 30. Qe5 {[%emt 0:05:08]} f6 {[%emt 0:00:46]} 31. Qg3 {[%emt 0:00:16]} axb2 {[%emt 0:00:23]} 32. Rd4 {[%emt 0:01:54]} Nc3 {[%emt 0:00:31]} 33. R4d2 {[%emt 0:03:53]} b1=Q {[%emt 0:16:33]} 34. Rxb1 {[%emt 0:00:09]} Nxb1 {[%emt 0:00:00]} 35. Rd7 {[%emt 0:00:51]} Rf7 {[%emt 0:00:00]} 0-1

[Event "FIDE WCCC Girls-10 2024"]
[Site "Montesilvano"]
[Date "2024.11.20"]
[Round "6.5"]
[White "Nguyen Doan, Bao Anh Angelina"]
[Black "Nandinjiguur, Chinzorig"]
[Result "1-0"]
[Annotator "NA RC"]
[ECO "C45"]
[WhiteElo "1628"]
[BlackElo "1807"]
[PlyCount "139"]
[EventDate "2024.11.18"]
[EventType "swiss"]
[EventCountry "ITA"]
[SourceTitle "playchess.com"]
[Source "ChessBase"]
[SourceQuality "1"]
[TimeControl "5400+30"]

1. e4 {[%emt 0:00:02]} e5 {[%emt 0:04:03]} 2. Nf3 {[%emt 0:00:18]} Nc6 {[%emt 0:00:17]} 3. d4 {[%emt 0:00:08]} exd4 {[%emt 0:00:18]} 4. Nxd4 {[%emt 0:00:18]} Nf6 {[%emt 0:00:08]} 5. Nxc6 {[%emt 0:00:18]} bxc6 {[%emt 0:00:11]} 6. Nd2 {[%emt 0:00:19]} d5 {[%emt 0:09:02]} 7. exd5 {[%emt 0:00:24]} cxd5 {[%emt 0:00:29]} 8. Bb5+ {[%emt 0:00:16]} Bd7 {[%emt 0:00:35]} 9. Bxd7+ {[%emt 0:00:11]} Qxd7 {[%emt 0:00:15]} 10. O-O {[%emt 0:00:26]} Be7 {[%emt 0:00:42]} 11. b3 {[%emt 0:01:12]} O-O {[%emt 0:00:40]} 12. Bb2 {[%emt 0:00:57]} c5 {[%emt 0:09:26]} 13. Qf3 {[%emt 0:01:59]} Qg4 {[%emt 0:09:24]} 14. Rfe1 {[%emt 0:08:51]} Qxf3 {[%emt 0:01:35]} 15. Nxf3 {[%emt 0:00:28]} Rfe8 {[%emt 0:00:30]} 16. Rad1 {[%emt 0:05:44]} d4 {[%emt 0:07:39]} 17. h3 {[%emt 0:10:01]} Nd5 {[%emt 0:01:07]} 18. a4 {[%emt 0:08:10]} Bf6 {[%emt 0:01:12]} 19. Ba3 {[%emt 0:59:58]} Nc3 {[%emt 0:06:50]} 20. Rxe8+ {[%emt 0:00:00]} Rxe8 {[%emt 0:00:09]} 21. Re1 {[%emt 0:00:00]} Rxe1+ {[%emt 0:02:37]} 22. Nxe1 {[%emt 0:00:00]} c4 {[%emt 0:01:25]} 23. bxc4 {[%emt 0:00:00]} Nxa4 {[%emt 0:00:54]} 24. Nd3 {[%emt 0:00:00]} Nb6 {[%emt 0:06:14]} 25. c5 {[%emt 0:00:00]} Nc8 {[%emt 0:02:02]} 26. c6 {[%emt 0:00:00]} Bd8 {[%emt 0:03:44]} 27. Bc5 {[%emt 0:00:00]} Bb6 {[%emt 0:00:39]} 28. Kf1 {[%emt 0:00:00]} f6 {[%emt 0:14:23]} 29. Ke2 {[%emt 0:00:00]} Kf7 {[%emt 0:00:06]} 30. Bxb6 {[%emt 0:00:00]} axb6 {[%emt 0:00:47]} 31. Nb4 {[%emt 0:00:00]} Ke6 {[%emt 0:02:40]} 32. Kd3 {[%emt 0:00:00]} Kd6 {[%emt 0:00:53]} 33. Kxd4 {[%emt 0:00:00]} Ne7 {[%emt 0:00:50]} 34. c7 {[%emt 0:01:10]} Kxc7 {[%emt 0:03:50]} 35. Nd5+ {[%emt 0:00:30]} Nxd5 {[%emt 0:00:13]} 36. Kxd5 {[%emt 0:00:03]} Kd7 {[%emt 0:02:31]} 37. g3 {[%emt 0:02:39]} g6 {[%emt 0:05:08]} 38. f3 {[%emt 0:01:10]} h6 {[%emt 0:02:11]} 39. f4 {[%emt 0:01:55]} g5 {[%emt 0:02:46]} 40. f5 {[%emt 0:01:05]} h5 {[%emt 0:00:39]} 41. g4 {[%emt 0:00:18]} hxg4 {[%emt 0:00:53]} 42. hxg4 {[%emt 0:00:03]} b5 {[%emt 0:00:19]} 43. Kc5 {[%emt 0:00:15]} b4 {[%emt 0:00:08]} 44. Kxb4 {[%emt 0:00:25]} Kd6 {[%emt 0:00:04]} 45. c4 {[%emt 0:00:48]} Ke5 {[%emt 0:00:17]} 46. c5 {[%emt 0:00:08]} Kf4 {[%emt 0:00:06]} 47. c6 {[%emt 0:00:08]} Kxg4 {[%emt 0:00:08]} 48. c7 {[%emt 0:00:01]} Kxf5 {[%emt 0:00:13]} 49. c8=Q+ {[%emt 0:00:03]} Kf4 {[%emt 0:00:36]} 50. Qc4+ {[%emt 0:00:10]} Kg3 {[%emt 0:01:15]} 51. Qf1 {[%emt 0:00:22]} g4 {[%emt 0:00:09]} 52. Qxf6 {[%emt 0:00:03]} Kg2 {[%emt 0:00:14]} 53. Qb2+ {[%emt 0:00:31]} Kh3 {[%emt 0:00:33]} 54. Qf2 {[%emt 0:00:31]} g3 {[%emt 0:00:08]} 55. Qg1 {[%emt 0:00:03]} g2 {[%emt 0:00:09]} 56. Kc3 {[%emt 0:00:06]} Kg3 {[%emt 0:00:05]} 57. Kd3 {[%emt 0:00:03]} Kf3 {[%emt 0:00:08]} 58. Kd2 {[%emt 0:00:12]} Kg3 {[%emt 0:00:08]} 59. Ke2 {[%emt 0:00:04]} Kf4 {[%emt 0:00:15]} 60. Qxg2 {[%emt 0:00:04]} Kf5 {[%emt 0:00:08]} 61. Qd5+ {[%emt 0:00:58]} Kf6 {[%emt 0:00:13]} 62. Kf3 {[%emt 0:00:07]} Ke7 {[%emt 0:00:11]} 63. Qc6 {[%emt 0:00:04]} Kf7 {[%emt 0:00:09]} 64. Qd6 {[%emt 0:00:10]} Ke8 {[%emt 0:00:13]} 65. Qc7 {[%emt 0:00:03]} Kf8 {[%emt 0:00:05]} 66. Qd7 {[%emt 0:00:10]} Kg8 {[%emt 0:00:05]} 67. Kf4 {[%emt 0:00:08]} Kf8 {[%emt 0:00:06]} 68. Kg5 {[%emt 0:00:03]} Kg8 {[%emt 0:00:07]} 69. Kg6 {[%emt 0:00:13]} Kf8 {[%emt 0:00:07]} 70. Qf7# {[%emt 0:00:06]} 1-0

[Event "FIDE WCCC Girls-10 2024"]
[Site "Montesilvano"]
[Date "2024.11.20"]
[Round "6.6"]
[White "Ahmadli, Mehriban"]
[Black "Peng, Jingyi(Gd)"]
[Result "1-0"]
[Annotator "NA RC"]
[ECO "B30"]
[WhiteElo "1624"]
[BlackElo "1720"]
[PlyCount "45"]
[EventDate "2024.11.18"]
[EventType "swiss"]
[EventCountry "ITA"]
[SourceTitle "playchess.com"]
[Source "ChessBase"]
[SourceQuality "1"]
[TimeControl "5400+30"]

1. e4 {[%emt 0:00:02]} c5 {[%emt 0:00:02]} 2. Nf3 {[%emt 0:00:07]} Nc6 {[%emt 0:00:03]} 3. Nc3 {[%emt 0:00:09]} e5 {[%emt 0:00:04]} 4. Bc4 {[%emt 0:00:35]} d6 {[%emt 0:00:14]} 5. O-O {[%emt 0:00:06]} Be7 {[%emt 0:00:02]} 6. h3 {[%emt 0:02:37]} Nf6 {[%emt 0:00:11]} 7. Re1 {[%emt 0:01:19]} O-O {[%emt 0:00:12]} 8. a3 {[%emt 0:05:23]} h6 {[%emt 0:15:07]} 9. d3 {[%emt 0:00:57]} Nh7 {[%emt 0:08:45]} 10. Nd5 {[%emt 0:03:47]} Bh4 {[%emt 0:11:41]} 11. c3 {[%emt 0:09:54]} Kh8 {[%emt 0:07:48]} 12. b4 {[%emt 0:11:10]} f5 {[%emt 0:09:40]} 13. bxc5 {[%emt 0:01:49]} f4 {[%emt 0:25:00]} 14. cxd6 {[%emt 0:03:28]} Bxh3 {[%emt 0:04:09]} 15. gxh3 {[%emt 0:09:12]} Ng5 {[%emt 0:00:09]} 16. Kg2 {[%emt 0:00:53]} Bxf2 {[%emt 0:09:28]} 17. Kxf2 {[%emt 0:03:23]} Nxh3+ {[%emt 0:00:06]} 18. Ke2 {[%emt 0:03:53]} g5 {[%emt 0:00:48]} 19. Rh1 {[%emt 0:01:07]} g4 {[%emt 0:00:04]} 20. Qf1 {[%emt 0:02:48]} Rg8 {[%emt 0:02:17]} 21. Kd1 {[%emt 0:10:25]} Qa5 {[%emt 0:01:42]} 22. Nd2 {[%emt 0:12:20]} Raf8 {[%emt 0:03:21]} 23. Kc2 {[%emt 0:07:04]} 1-0